fUSD/lending_fUSD_20240803
["ID","MTS","AMOUNT","RATE_DAILY","PERIOD"]
[333987245,1722666707331,-1869.99,0.0001726,2]
[333987246,1722666707340,-1937.58,0.0001726,2]
[333987247,1722666707349,-500.0,0.0001726,2]
[333987248,1722666707359,-1092.19,0.0001726,2]
[333987249,1722666707368,-500.0,0.0001726,2]
[333987250,1722666707377,-500.0,0.0001726,2]
[333987251,1722666707386,-530.12411552,0.0001726,2]
[333987252,1722666707395,-1144.97,0.0001726,2]
[333987253,1722666707405,-1286.39,0.0001726,2]
[333987254,1722666707414,-510.53077424,0.0001726,2]
[333987255,1722666707423,-500.0,0.0001726,2]
[333987256,1722666707433,-500.0,0.0001726,2]
[333987257,1722666707443,-1257.28,0.0001726,2]
[333987258,1722666707455,-500.0,0.0001726,2]
[333987259,1722666707464,-500.0,0.0001726,2]
[333987260,1722666707474,-575.74,0.0001726,2]
[333987261,1722666707483,-500.0,0.0001726,2]
[333987262,1722666707493,-790.36,0.0001726,2]
[333987263,1722666707502,-500.0,0.0001726,2]
[333987264,1722666707512,-1056.65,0.0001726,2]
[333987265,1722666707521,-682.23,0.0001726,2]
[333987266,1722666707530,-500.0,0.0001726,2]
[333987267,1722666707540,-500.0,0.0001726,2]
[333987268,1722666707549,-831.9,0.0001726,2]
[333987269,1722666707559,-500.0,0.0001726,2]
[333987270,1722666707569,-1274.51,0.0001726,2]
[333987271,1722666707579,-971.42,0.0001726,2]
[333987272,1722666707589,-1312.76,0.0001726,2]
[333987273,1722666707598,-151.53882717,0.0001726,2]
[333987274,1722666707608,-500.0,0.0001726,2]
[333987275,1722666707618,-151.0,0.0001726,2]
[333987276,1722666707628,-500.0,0.0001726,2]
[333987277,1722666707638,-500.0,0.0001726,2]
[333987278,1722666707651,-151.0,0.0001726,2]
[333987279,1722666707661,-500.0,0.0001726,2]
[333987280,1722666707671,-500.0,0.0001726,2]
[333987281,1722666707682,-500.0,0.0001726,2]
[333987282,1722666707691,-500.0,0.0001726,2]
[333987283,1722666707701,-500.0,0.0001726,2]
[333987284,1722666707711,-500.0,0.0001726,2]
[333987285,1722666707723,-500.0,0.0001726,2]
[333987286,1722666707733,-1074.3,0.0001726,2]
[333987287,1722666707743,-500.0,0.0001726,2]
[333987288,1722666707753,-500.0,0.0001726,2]
[333987289,1722666707762,-506.53537055,0.0001726,2]
[333987290,1722666707772,-634.32,0.0001726,2]
[333987291,1722666707782,-508.89001226,0.0001726,2]
[333987292,1722666707792,-564.14,0.0001726,2]
[333987293,1722666707802,-500.0,0.0001726,2]
[333987294,1722666707813,-786.52,0.0001726,2]
[333987295,1722666707823,-505.05450844,0.0001726,2]
[333987296,1722666707832,-500.0,0.0001726,2]
[333987297,1722666707841,-500.0,0.0001726,2]
[333987298,1722666707851,-500.0,0.0001726,2]
[333987299,1722666707861,-1029.12,0.0001726,2]
[333987300,1722666707870,-500.0,0.0001726,2]
[333987301,1722666707880,-500.0,0.0001726,2]
[333987302,1722666707890,-837.07,0.0001726,2]
[333987303,1722666707899,-1796.88,0.0001726,2]
[333987304,1722666707909,-580.67486008,0.0001726,2]
[333987305,1722666707919,-1732.55,0.0001726,2]
[333987306,1722666707929,-500.0,0.0001726,2]
[333987307,1722666707939,-500.0,0.0001726,2]
[333987308,1722666707949,-500.0,0.0001726,2]
[333987309,1722666707959,-1247.970465,0.0001726,2]
[333987310,1722666707970,-580.27499,0.0001726,2]
[333987311,1722666707979,-1247.970465,0.0001726,2]
[333987312,1722666707989,-580.27499,0.0001726,2]
[333987313,1722666707999,-500.0,0.0001726,2]
[333987314,1722666708009,-174.26607,0.0001726,2]
[333987315,1722666708019,-1573.42,0.0001726,2]
[333987316,1722666708028,-174.26607,0.0001726,2]
[333987317,1722666708038,-500.0,0.0001726,2]
[333987318,1722666708048,-580.27499,0.0001726,2]
[333987319,1722666708057,-507.96636827,0.0001726,2]
[333987320,1722666708068,-1247.970465,0.0001726,2]
[333987321,1722666708078,-580.27499,0.0001726,2]
[333987322,1722666708088,-1247.970465,0.0001726,2]
[333987323,1722666708098,-428.37909733,0.0001726,2]
[333987324,1722666708108,-174.26607,0.0001726,2]
[333987325,1722666708118,-174.26607,0.0001726,2]
[333987326,1722666708128,-500.0,0.0001726,2]
[333987327,1722666708138,-854.91,0.0001726,2]
[333987328,1722666708148,-1076.12,0.0001726,2]
[333987329,1722666708158,-580.89052683,0.0001726,2]
[333987330,1722666708168,-514.32811824,0.0001726,2]
[333987331,1722666708178,-500.0,0.0001726,2]
[333987332,1722666708188,-500.0,0.0001726,2]
[333987333,1722666708197,-500.0,0.0001726,2]
[333987334,1722666708210,-737.63,0.0001726,2]
[333987335,1722666708220,-500.0,0.0001726,2]
[333987336,1722666708230,-500.0,0.0001726,2]
[333987337,1722666708241,-1711.13,0.0001726,2]
[333987338,1722666708252,-151.0,0.0001726,2]
[333987339,1722666708263,-151.0,0.0001726,2]
[333987340,1722666708274,-500.0,0.0001726,2]
[333987341,1722666708285,-500.0,0.0001726,2]
[333987342,1722666708296,-500.0,0.0001726,2]
[333987343,1722666708306,-599.32,0.0001726,2]
[333987344,1722666708317,-500.0,0.0001726,2]
[333987345,1722666708327,-1490.49,0.0001726,2]
[333987346,1722666708338,-151.0,0.0001726,2]
[333987347,1722666708348,-151.0,0.0001726,2]
[333987348,1722666708359,-498.77194469,0.0001726,2]
[333987349,1722666708369,-500.0,0.0001726,2]
[333987350,1722666708380,-500.0,0.0001726,2]
[333987351,1722666708390,-151.0,0.0001726,2]
[333987352,1722666708400,-151.0,0.0001726,2]
[333987353,1722666708411,-500.0,0.0001726,2]
[333987354,1722666708422,-500.0,0.0001726,2]
[333987355,1722666708432,-686.99,0.0001726,2]
[333987356,1722666708443,-500.0,0.0001726,2]
[333987357,1722666708455,-683.87,0.0001726,2]
[333987358,1722666708465,-941.41,0.0001726,2]
[333987359,1722666708476,-151.0,0.0001726,2]
[333987360,1722666708486,-500.0,0.0001726,2]
[333987361,1722666708497,-500.0,0.0001726,2]
[333987362,1722666708507,-500.0,0.0001726,2]
[333987363,1722666708517,-500.0,0.0001726,2]
[333987364,1722666708527,-925.99,0.0001726,2]
[333987365,1722666708537,-500.0,0.0001726,2]
[333987366,1722666708547,-520.99348217,0.0001726,2]
[333987367,1722666708558,-518.33,0.0001726,2]
[333987368,1722666708567,-500.0,0.0001726,2]
[333987369,1722666708578,-500.0,0.0001726,2]
[333987370,1722666708588,-1190.09,0.0001726,2]
[333987371,1722666708598,-500.0,0.0001726,2]
[333987372,1722666708608,-500.0,0.0001726,2]
[333987373,1722666708618,-500.0,0.0001726,2]
[333987374,1722666708629,-500.0,0.0001726,2]
[333987375,1722666708639,-775.59,0.0001726,2]
[333987376,1722666708653,-500.0,0.0001726,2]
[333987377,1722666708663,-850.78,0.0001726,2]
[333987378,1722666708673,-507.31499556,0.0001726,2]
[333987379,1722666708683,-500.0,0.0001726,2]
[333987380,1722666708693,-1150.61,0.0001726,2]
[333987381,1722666708704,-520.21509846,0.0001726,2]
[333987382,1722666708715,-500.0,0.0001726,2]
[333987383,1722666708727,-500.0,0.0001726,2]
[333987384,1722666708738,-1249.02,0.0001726,2]
[333987385,1722666708748,-500.0,0.0001726,2]
[333987386,1722666708758,-500.0,0.0001726,2]
[333987387,1722666708769,-1183.94,0.0001726,2]
[333987388,1722666708780,-500.0,0.0001726,2]
[333987389,1722666708790,-500.0,0.0001726,2]
[333987390,1722666708800,-500.0,0.0001726,2]
[333987391,1722666708810,-714.61,0.0001726,2]
[333987392,1722666708820,-980.506918,0.0001726,2]
[333987393,1722666708830,-164.92012,0.0001726,2]
[333987394,1722666708840,-500.0,0.0001726,2]
[333987395,1722666708849,-500.0,0.0001726,2]
[333987396,1722666708859,-980.506918,0.0001726,2]
[333987397,1722666708869,-619.81,0.0001726,2]
[333987398,1722666708879,-164.92012,0.0001726,2]
[333987399,1722666708890,-1412.03,0.0001726,2]
[333987400,1722666708900,-557.22,0.0001726,2]
[333987401,1722666708911,-500.0,0.0001726,2]
[333987402,1722666708921,-500.0,0.0001726,2]
[333987403,1722666708931,-500.0,0.0001726,2]
[333987404,1722666708941,-500.0,0.0001726,2]
[333987405,1722666708952,-500.0,0.0001726,2]
[333987406,1722666708962,-901.04,0.0001726,2]
[333987407,1722666708972,-1245.11,0.0001726,2]
[333987408,1722666708982,-500.0,0.0001726,2]
[333987409,1722666708992,-1551.65,0.0001726,2]
[333987410,1722666709002,-510.01627373,0.0001726,2]
[333987411,1722666709012,-500.0,0.0001726,2]
[333987412,1722666709024,-829.01,0.0001726,2]
[333987413,1722666709033,-563.09,0.0001726,2]
[333987414,1722666709043,-500.0,0.0001726,2]
[333987415,1722666709053,-523.94,0.0001726,2]
[333987416,1722666709064,-1086.27,0.0001726,2]
[333987417,1722666709074,-500.0,0.0001726,2]
[333987418,1722666709084,-554.91,0.0001726,2]
[333987419,1722666709095,-509.05812809,0.0001726,2]
[333987420,1722666709106,-502.21625141,0.0001726,2]
[333987421,1722666709116,-151.0,0.0001726,2]
[333987422,1722666709127,-372.150765,0.0001726,2]
[333987423,1722666709136,-783.81,0.0001726,2]
[333987424,1722666709147,-500.0,0.0001726,2]
[333987425,1722666709156,-500.0,0.0001726,2]
[333987426,1722666709167,-1346.52,0.0001726,2]
[333987427,1722666709178,-151.0,0.0001726,2]
[333987428,1722666709188,-1087.56,0.0001726,2]
[333987429,1722666709199,-500.0,0.0001726,2]
[333987430,1722666709210,-1404.5,0.0001726,2]
[333987431,1722666709220,-372.150765,0.0001726,2]
[333987432,1722666709231,-151.0,0.0001726,2]
[333987433,1722666709241,-527.94647281,0.0001726,2]
[333987434,1722666709251,-500.0,0.0001726,2]
[333987435,1722666709261,-318.64017716,0.0001726,2]
[333987436,1722666709271,-500.0,0.0001726,2]
[333987437,1722666709282,-500.0,0.0001726,2]
[333987438,1722666709292,-500.0,0.0001726,2]
[333987439,1722666709302,-1999.59,0.0001726,2]
[333987440,1722666709312,-500.0,0.0001726,2]
[333987441,1722666709322,-669.89,0.0001726,2]
[333987442,1722666709332,-397.78271828,0.0001726,2]
[333987443,1722666709343,-500.0,0.0001726,2]
[333987444,1722666709353,-500.0,0.0001726,2]
[333987445,1722666709363,-500.0,0.0001726,2]
[333987446,1722666709373,-515.33730607,0.0001726,2]
[333987447,1722666709383,-500.0,0.0001726,2]
[333987448,1722666709393,-791.15,0.0001726,2]
[333987449,1722666709403,-1652.52,0.0001726,2]
[333987450,1722666709413,-500.0,0.0001726,2]
[333987451,1722666709423,-500.0,0.0001726,2]
[333987452,1722666709434,-152.082932,0.0001726,2]
[333987453,1722666709446,-936.75,0.0001726,2]
[333987454,1722666709458,-500.0,0.0001726,2]
[333987455,1722666709468,-1126.33,0.0001726,2]
[333987456,1722666709478,-152.082932,0.0001726,2]
[333987457,1722666709488,-500.0,0.0001726,2]
[333987458,1722666709498,-506.71660207,0.0001726,2]
[333987459,1722666709508,-500.0,0.0001726,2]
[333987460,1722666709518,-535.70714913,0.0001726,2]
[333987461,1722666709528,-500.0,0.0001726,2]
[333987462,1722666709538,-1115.3,0.0001726,2]
[333987463,1722666709548,-506.06861434,0.0001726,2]
[333987464,1722666709558,-500.0,0.0001726,2]
[333987465,1722666709568,-1818.33,0.0001726,2]
[333987466,1722666709578,-621.62,0.0001726,2]
[333987467,1722666709588,-500.0,0.0001726,2]
[333987468,1722666709598,-500.0,0.0001726,2]
[333987469,1722666709608,-151.0,0.0001726,2]
[333987470,1722666709618,-814.86,0.0001726,2]
[333987471,1722666709628,-500.0,0.0001726,2]
[333987472,1722666709641,-151.0,0.0001726,2]
[333987473,1722666709655,-151.0,0.0001726,2]
[333987474,1722666709665,-764.75,0.0001726,2]
[333987475,1722666709675,-500.0,0.0001726,2]
[333987476,1722666709687,-500.0,0.0001726,2]
[333987477,1722666709697,-721.8,0.0001726,2]
[333987478,1722666709708,-500.0,0.0001726,2]
[333987479,1722666709720,-500.0,0.0001726,2]
[333987480,1722666709730,-500.0,0.0001726,2]
[333987481,1722666709740,-432.31518303,0.0001726,2]
[333987482,1722666709750,-151.0,0.0001726,2]
[333987483,1722666709760,-1488.46,0.0001726,2]
[333987484,1722666709770,-500.0,0.0001726,2]
[333987485,1722666709780,-500.0,0.0001726,2]
[333987486,1722666709790,-500.0,0.0001726,2]
[333987487,1722666709800,-1556.25,0.0001726,2]
[333987488,1722666709810,-506.40153029,0.0001726,2]
[333987489,1722666709820,-500.0,0.0001726,2]
[333987490,1722666709831,-500.0,0.0001726,2]
[333987491,1722666709842,-930.37,0.0001726,2]
[333987492,1722666710082,-541.23,0.0001726,2]
[333987493,1722666710091,-1099.96,0.0001726,2]
[333987494,1722666710101,-159.23803576,0.0001726,2]
[333987495,1722666710110,-862.02,0.0001726,2]
[333987496,1722666710119,-500.0,0.0001726,2]
[333987497,1722666710128,-782.39,0.0001726,2]
[333987498,1722666710138,-500.0,0.0001726,2]
[333987499,1722666710147,-665.68,0.0001726,2]
[333987500,1722666710157,-512.30899578,0.0001726,2]
[333987501,1722666710168,-500.0,0.0001726,2]
[333987502,1722666710177,-506.03997039,0.0001726,2]
[333987503,1722666710187,-231.696466,0.0001726,2]
[333987504,1722666710196,-231.696466,0.0001726,2]
[333987505,1722666710207,-500.0,0.0001726,2]
[333987506,1722666710216,-151.0,0.0001726,2]
[333987507,1722666710226,-151.0,0.0001726,2]
[333987508,1722666710235,-500.0,0.0001726,2]
[333987509,1722666710246,-500.0,0.0001726,2]
[333987510,1722666710257,-504.44821526,0.0001726,2]
[333987511,1722666710266,-660.12,0.0001726,2]
[333987512,1722666710276,-708.64,0.0001726,2]
[333987513,1722666710286,-231.696466,0.0001726,2]
[333987514,1722666710296,-231.696466,0.0001726,2]
[333987515,1722666710306,-500.0,0.0001726,2]
[333987516,1722666710316,-709.52,0.0001726,2]
[333987517,1722666710326,-151.0,0.0001726,2]
[333987518,1722666710335,-151.0,0.0001726,2]
[333987519,1722666710345,-500.0,0.0001726,2]
[333987520,1722666710354,-510.64,0.0001726,2]
[333987521,1722666710363,-500.0,0.0001726,2]
[333987522,1722666710373,-681.92,0.0001726,2]
[333987523,1722666710383,-500.0,0.0001726,2]
[333987524,1722666710392,-504.98363191,0.0001726,2]
[333987525,1722666710402,-151.0,0.0001726,2]
[333987526,1722666710411,-151.0,0.0001726,2]
[333987527,1722666710421,-500.0,0.0001726,2]
[333987528,1722666710432,-500.0,0.0001726,2]
[333987529,1722666710442,-504.42872929,0.0001726,2]
[333987530,1722666710452,-500.0,0.0001726,2]
[333987531,1722666710461,-1423.39,0.0001726,2]
[333987532,1722666710471,-500.0,0.0001726,2]
[333987533,1722666710480,-500.0,0.0001726,2]
[333987534,1722666710490,-500.0,0.0001726,2]
[333987535,1722666710499,-500.0,0.0001726,2]
[333987536,1722666710509,-2130.919257,0.0001726,2]
[333987537,1722666710519,-3672.91,0.0001726,2]
[333987538,1722666710528,-500.0,0.0001726,2]
[333987539,1722666710538,-796.7,0.0001726,2]
[333987540,1722666710547,-500.0,0.0001726,2]
[333987541,1722666710557,-500.0,0.0001726,2]
[333987542,1722666710566,-714.52,0.0001726,2]
[333987543,1722666710575,-2042.73,0.0001726,2]
[333987544,1722666710584,-500.0,0.0001726,2]
[333987545,1722666710593,-500.0,0.0001726,2]
[333987546,1722666710602,-2130.919257,0.0001726,2]
[333987547,1722666710611,-552.5,0.0001726,2]
[333987548,1722666710621,-1054.46,0.0001726,2]
[333987549,1722666710631,-504.98959716,0.0001726,2]
[333987550,1722666710641,-500.0,0.0001726,2]
[333987551,1722666710652,-2805.89,0.0001726,2]
[333987552,1722666710661,-500.0,0.0001726,2]
[333987553,1722666710671,-1433.51,0.0001726,2]
[333987554,1722666710682,-675.88,0.0001726,2]
[333987555,1722666710691,-1088.81,0.0001726,2]
[333987556,1722666710701,-500.0,0.0001726,2]
[333987557,1722666710711,-4007.83,0.0001726,2]
[333987558,1722666710721,-500.0,0.0001726,2]
[333987559,1722666710731,-762.84,0.0001726,2]
[333987560,1722666710740,-3217.66,0.0001726,2]
[333987561,1722666710749,-500.0,0.0001726,2]
[333987562,1722666710759,-500.0,0.0001726,2]
[333987563,1722666710769,-506.11685219,0.0001726,2]
[333987564,1722666710779,-2200.75,0.0001726,2]
[333987565,1722666710788,-514.86626252,0.0001726,2]
[333987566,1722666710797,-151.0,0.0001726,2]
[333987567,1722666710807,-151.0,0.0001726,2]
[333987568,1722666710817,-951.76,0.0001726,2]
[333987569,1722666710827,-1702.58,0.0001726,2]
[333987570,1722666710839,-500.0,0.0001726,2]
[333987571,1722666710850,-2092.77,0.0001726,2]
[333987572,1722666710860,-515.74419472,0.0001726,2]
[333987573,1722666710870,-504.23651795,0.0001726,2]
[333987574,1722666710879,-1018.959212,0.0001726,2]
[333987575,1722666710888,-652.04,0.0001726,2]
[333987576,1722666710897,-1018.959212,0.0001726,2]
[333987577,1722666710907,-500.0,0.0001726,2]
[333987578,1722666710915,-500.0,0.0001726,2]
[333987579,1722666710925,-507.82137862,0.0001726,2]
[333987580,1722666710934,-5244.42,0.0001726,2]
[333987581,1722666710943,-500.0,0.0001726,2]
[333987582,1722666710954,-710.45,0.0001726,2]
[333987583,1722666710971,-693.09,0.0001726,2]
[333987584,1722666710979,-500.0,0.0001726,2]
[333987585,1722666710989,-761.36,0.0001726,2]
[333987586,1722666710998,-2061.72,0.0001726,2]
[333987587,1722666711007,-500.0,0.0001726,2]
[333987588,1722666711016,-500.0,0.0001726,2]
[333987589,1722666711026,-4346.28,0.0001726,2]
[333987590,1722666711035,-2038.36,0.0001726,2]
[333987591,1722666711044,-1475.27,0.0001726,2]
[333987592,1722666711053,-1018.959212,0.0001726,2]
[333987593,1722666711062,-1018.959212,0.0001726,2]
[333987594,1722666711071,-500.0,0.0001726,2]
[333987595,1722666711081,-744.05,0.0001726,2]
[333987596,1722666711090,-1223.68,0.0001726,2]
[333987597,1722666711099,-500.0,0.0001726,2]
[333987598,1722666711110,-1359.7,0.0001726,2]
[333987599,1722666711119,-500.0,0.0001726,2]
[333987600,1722666711129,-500.0,0.0001726,2]
[333987601,1722666711139,-4500.27,0.0001726,2]
[333987602,1722666711150,-500.0,0.0001726,2]
[333987603,1722666711160,-842.12,0.0001726,2]
[333987604,1722666711170,-1729.93,0.0001726,2]
[333987605,1722666711180,-11630.47,0.0001726,2]
[333987606,1722666711189,-500.0,0.0001726,2]
[333987607,1722666711199,-694.666789,0.0001726,2]
[333987608,1722666711209,-694.666789,0.0001726,2]
[333987609,1722666711219,-7815.4,0.0001726,2]
[333987610,1722666711228,-1992.28,0.0001726,2]
[333987611,1722666711238,-500.0,0.0001726,2]
[333987612,1722666711247,-500.0,0.0001726,2]
[333987613,1722666711257,-872.75,0.0001726,2]
[333987614,1722666711267,-1230.65,0.0001726,2]
[333987615,1722666711278,-694.666789,0.0001726,2]
[333987616,1722666711287,-694.666794,0.0001726,2]
[333987617,1722666711296,-1652.65,0.0001726,2]
[333987618,1722666711306,-500.0,0.0001726,2]
[333987619,1722666711315,-500.0,0.0001726,2]
[333987620,1722666711324,-1417.26,0.0001726,2]
[333987621,1722666711333,-500.0,0.0001726,2]
[333987622,1722666711343,-24317.71,0.0001726,2]
[333987623,1722666711352,-500.0,0.0001726,2]
[333987624,1722666711361,-916.334531,0.0001726,2]
[333987625,1722666711370,-916.334531,0.0001726,2]
[333987626,1722666711379,-10000.0,0.0001726,2]
[333987627,1722666711389,-637.152241,0.0001726,2]
[333987628,1722666711399,-10000.0,0.0001726,2]
[333987629,1722666711409,-500.0,0.0001726,2]
[333987630,1722666711419,-500.0,0.0001726,2]
[333987631,1722666711428,-8359.0,0.0001726,2]
[333987632,1722666711438,-1381.62,0.0001726,2]
[333987633,1722666711448,-2959.52,0.0001726,2]
[333987634,1722666711458,-500.0,0.0001726,2]
[333987635,1722666711468,-500.0,0.0001726,2]
[333987636,1722666711477,-1125.68,0.0001726,2]
[333987637,1722666711487,-2625.72,0.0001726,2]
[333987638,1722666711496,-916.334531,0.0001726,2]
[333987639,1722666711505,-916.334524,0.0001726,2]
[333987640,1722666711515,-500.0,0.0001726,2]
[333987641,1722666711524,-541.08,0.0001726,2]
[333987642,1722666711534,-500.0,0.0001726,2]
[333987643,1722666711543,-10000.0,0.0001726,2]
[333987644,1722666711552,-10000.0,0.0001726,2]
[333987645,1722666711561,-1606.59,0.0001726,2]
[333987646,1722666711571,-4129.44,0.0001726,2]
[333987647,1722666711581,-500.0,0.0001726,2]
[333987648,1722666711591,-765.03,0.0001726,2]
[333987649,1722666711600,-500.0,0.0001726,2]
[333987650,1722666711609,-500.0,0.0001726,2]
[333987651,1722666711618,-1071.89,0.0001726,2]
[333987652,1722666711627,-500.0,0.0001726,2]
[333987653,1722666711637,-8009.82,0.0001726,2]
[333987654,1722666711650,-500.0,0.0001726,2]
[333987655,1722666711659,-500.0,0.0001726,2]
[333987656,1722666711669,-500.0,0.0001726,2]
[333987657,1722666711678,-4309.68,0.0001726,2]
[333987658,1722666711688,-508.32424615,0.0001726,2]
[333987659,1722666711698,-677.22,0.0001726,2]
[333987660,1722666711708,-155.285,0.0001726,2]
[333987661,1722666711719,-504.52643447,0.0001726,2]
[333987662,1722666711729,-155.285,0.0001726,2]
[333987663,1722666711738,-500.0,0.0001726,2]
[333987664,1722666711760,-500.0,0.0001726,2]
[333987665,1722666711779,-3498.32,0.0001726,2]
[333987666,1722666711797,-1008.21,0.0001726,2]
[333987667,1722666711817,-500.0,0.0001726,2]
[333987668,1722666711838,-155.285,0.0001726,2]
[333987669,1722666711856,-506.33167205,0.0001726,2]
[333987670,1722666711874,-155.285,0.0001726,2]
[333987671,1722666711889,-2091.29,0.0001726,2]
[333987672,1722666711908,-678.45,0.0001726,2]
[333987673,1722666711929,-500.0,0.0001726,2]
[333987674,1722666711943,-500.0,0.0001726,2]
[333987675,1722666711959,-3261.4,0.0001726,2]
[333987676,1722666711976,-500.0,0.0001726,2]
[333987677,1722666711996,-2329.21,0.0001726,2]
[333987678,1722666712010,-418.33204389,0.0001726,2]
[333987679,1722666712029,-2884.474118,0.0001726,2]
[333987680,1722666712044,-1982.62,0.0001726,2]
[333987681,1722666712061,-2884.474118,0.0001726,2]
[333987682,1722666712077,-6585.94,0.0001726,2]
[333987683,1722666712093,-532.0,0.0001726,2]
[333987684,1722666712109,-2347.25,0.0001726,2]
[333987685,1722666712124,-2884.474118,0.0001726,2]
[333987686,1722666712140,-2884.474118,0.0001726,2]
[333987687,1722666712155,-3237.49,0.0001726,2]
[333987688,1722666712172,-595.79,0.0001726,2]
[333987689,1722666712187,-1438.93,0.0001726,2]
[333987690,1722666712203,-500.0,0.0001726,2]
[333987691,1722666712218,-508.5460568,0.0001726,2]
[333987692,1722666712234,-432.51720497,0.0001726,2]
[333987693,1722666712249,-1558.03,0.0001726,2]
[333987694,1722666712265,-12013.62,0.0001726,2]
[333987695,1722666712281,-3194.48,0.0001726,2]
[333987696,1722666712296,-2240.39,0.0001726,2]
[333987697,1722666712311,-1275.84,0.0001726,2]
[333987698,1722666712326,-508.22717576,0.0001726,2]
[333987699,1722666712340,-1245.88,0.0001726,2]
[333987700,1722666712354,-328.60191633,0.0001726,2]
[333987701,1722666712370,-869.05,0.0001726,2]
[333987702,1722666712385,-500.0,0.0001726,2]
[333987703,1722666712401,-500.0,0.0001726,2]
[333987704,1722666712415,-3558.7,0.0001726,2]
[333987705,1722666712431,-509.37468838,0.0001726,2]
[333987706,1722666712445,-500.0,0.0001726,2]
[333987707,1722666712461,-1516.63,0.0001726,2]
[333987708,1722666712476,-4848.71,0.0001726,2]
[333987709,1722666712492,-2444.23,0.0001726,2]
[333987710,1722666712508,-506.09995469,0.0001726,2]
[333987711,1722666712523,-2528.58,0.0001726,2]
[333987712,1722666712536,-7111.63,0.0001726,2]
[333987713,1722666712552,-1234.51,0.0001726,2]
[333987714,1722666712568,-500.0,0.0001726,2]
[333987715,1722666712584,-1577.42,0.0001726,2]
[333987716,1722666712600,-454.77370173,0.0001726,2]
[333987717,1722666712616,-3976.74,0.0001726,2]
[333987718,1722666712633,-914.84,0.0001726,2]
[333987719,1722666712654,-505.65416194,0.0001726,2]
[333987720,1722666712669,-1179.29,0.0001726,2]
[333987721,1722666712684,-500.0,0.0001726,2]
[333987722,1722666712701,-2341.98,0.0001726,2]
[333987723,1722666712715,-522.63,0.0001726,2]
[333987724,1722666712731,-2827.3,0.0001726,2]
[333987725,1722666712745,-1379.48,0.0001726,2]
[333987726,1722666712760,-13569.7,0.0001726,2]
[333987727,1722666712775,-1254.92,0.0001726,2]
[333987728,1722666712791,-503.96106785,0.0001726,2]
[333987729,1722666712805,-989.03,0.0001726,2]
[333987730,1722666712821,-867.22,0.0001726,2]
[333987731,1722666712836,-1520.15,0.0001726,2]
[333987732,1722666712851,-518.25744897,0.0001726,2]
[333987733,1722666712866,-500.0,0.0001726,2]
[333987734,1722666712880,-503.69233669,0.0001726,2]
[333987735,1722666712894,-941.33,0.0001726,2]
[333987736,1722666712908,-4544.83,0.0001726,2]
[333987737,1722666712924,-1100.73,0.0001726,2]
[333987738,1722666712940,-797.96,0.0001726,2]
[333987739,1722666712955,-500.0,0.0001726,2]
[333987740,1722666712969,-799.61,0.0001726,2]
[333987741,1722666712986,-500.0,0.0001726,2]
[333987742,1722666712999,-500.0,0.0001726,2]
[333987743,1722666713014,-5638.64,0.0001726,2]
[333987744,1722666713030,-1242.0,0.0001726,2]